[Event "Titled Tuesday Blitz June 13 Late 2023"]
[White "Quirke, Jeffrey"]
[Black "WindWhistler11"]
[WhiteFideId "2013029"]
[WhiteElo "2222"]
[BlackElo "2579"]
[Result "0-1"]
[Round "1"]
[TimeControl "180+2"]
[Date "2023.06.13"]
[WhiteClock "0:00:05"]
[BlackClock "0:01:13"]
[Board "167"]

1. e4 {[%clk 0:01:54]}  e6 {[%clk 0:02:59]} 2. d4 {[%clk 0:01:52]}  d5 {[%clk 0:03:00]} 3. e5 {[%clk 0:01:52]}  c5 {[%clk 0:02:59]} 4. c3 {[%clk 0:01:53]}  Nc6 {[%clk 0:03:00]} 5. Nf3 {[%clk 0:01:52]}  Bd7 {[%clk 0:02:58]} 6. Bd3 {[%clk 0:01:52]}  Nge7 {[%clk 0:02:52]} 7. O-O {[%clk 0:01:50]}  Nf5 {[%clk 0:02:47]} 8. a3 {[%clk 0:01:45]}  cxd4 {[%clk 0:02:45]} 9. Bxf5 {[%clk 0:01:42]}  exf5 {[%clk 0:02:45]} 10. cxd4 {[%clk 0:01:41]}  Be6 {[%clk 0:02:44]} 11. Nc3 {[%clk 0:01:41]}  Be7 {[%clk 0:02:45]} 12. b4 {[%clk 0:01:30]}  O-O {[%clk 0:02:44]} 13. Bb2 {[%clk 0:01:25]}  Kh8 {[%clk 0:02:23]} 14. Rc1 {[%clk 0:01:24]}  g5 {[%clk 0:02:23]} 15. Ne1 {[%clk 0:01:20]}  f4 {[%clk 0:02:20]} 16. Na4 {[%clk 0:01:12]}  Rc8 {[%clk 0:02:07]} 17. Nd3 {[%clk 0:01:11]}  b6 {[%clk 0:02:05]} 18. Qh5 {[%clk 0:00:57]}  Bf5 {[%clk 0:01:59]} 19. Ne1 {[%clk 0:00:43]}  Qd7 {[%clk 0:01:55]} 20. h3 {[%clk 0:00:35]}  Rg8 {[%clk 0:01:35]} 21. Qd1 {[%clk 0:00:32]}  g4 {[%clk 0:01:32]} 22. hxg4 {[%clk 0:00:31]}  Rxg4 {[%clk 0:01:27]} 23. f3 {[%clk 0:00:29]}  Rg6 {[%clk 0:01:25]} 24. Rf2 {[%clk 0:00:27]}  Rcg8 {[%clk 0:01:23]} 25. Nc3 {[%clk 0:00:26]}  Bh4 {[%clk 0:01:23]} 26. Ne2 {[%clk 0:00:25]}  Qe7 {[%clk 0:01:17]} 27. Rf1 {[%clk 0:00:16]}  Bg3 {[%clk 0:01:15]} 28. Qd2 {[%clk 0:00:05]}  Qh4 {[%clk 0:01:13]} 0-1


[Site "https://www.chess.com"]

[Event "Titled Tuesday Blitz June 13 Late 2023"]
[White "Krishnan, Varun"]
[Black "Chemin, Justo Reinaldo"]
[WhiteFideId "5054508"]
[BlackFideId "2101580"]
[WhiteElo "2577"]
[BlackElo "1940"]
[Result "1-0"]
[Round "1"]
[TimeControl "180+2"]
[Date "2023.06.13"]
[WhiteClock "0:01:06"]
[BlackClock "0:00:09"]
[Board "168"]

1. d4 {[%clk 0:02:58]}  d5 {[%clk 0:02:52]} 2. c4 {[%clk 0:02:58]}  dxc4 {[%clk 0:02:51]} 3. Nf3 {[%clk 0:02:57]}  e6 {[%clk 0:02:51]} 4. e4 {[%clk 0:02:55]}  c5 {[%clk 0:02:50]} 5. d5 {[%clk 0:02:54]}  a6 {[%clk 0:02:48]} 6. a4 {[%clk 0:02:50]}  Nf6 {[%clk 0:02:43]} 7. Nc3 {[%clk 0:02:48]}  exd5 {[%clk 0:02:36]} 8. exd5 {[%clk 0:02:33]}  Bd6 {[%clk 0:02:28]} 9. Bxc4 {[%clk 0:02:32]}  O-O {[%clk 0:02:27]} 10. O-O {[%clk 0:02:29]}  Bg4 {[%clk 0:02:26]} 11. Bg5 {[%clk 0:02:29]}  Nbd7 {[%clk 0:02:24]} 12. h3 {[%clk 0:02:29]}  Bh5 {[%clk 0:02:19]} 13. Be2 {[%clk 0:02:26]}  Bg6 {[%clk 0:02:17]} 14. Nh4 {[%clk 0:02:25]}  Qc7 {[%clk 0:02:15]} 15. Nxg6 {[%clk 0:02:23]}  hxg6 {[%clk 0:02:12]} 16. Qc2 {[%clk 0:02:19]}  Bh2+ {[%clk 0:01:59]} 17. Kh1 {[%clk 0:02:19]}  Be5 {[%clk 0:01:59]} 18. Bf3 {[%clk 0:02:16]}  Qd6 {[%clk 0:01:50]} 19. Rad1 {[%clk 0:02:12]}  Rfe8 {[%clk 0:01:46]} 20. Rfe1 {[%clk 0:01:59]}  Bf4 {[%clk 0:01:32]} 21. Bxf4 {[%clk 0:01:57]}  Qxf4 {[%clk 0:01:32]} 22. d6 {[%clk 0:01:57]}  Rab8 {[%clk 0:01:25]} 23. Re7 {[%clk 0:01:51]}  Rxe7 {[%clk 0:01:16]} 24. dxe7 {[%clk 0:01:51]}  Qe5 {[%clk 0:01:16]} 25. Qe2 {[%clk 0:01:21]}  Qxe2 {[%clk 0:01:07]} 26. Nxe2 {[%clk 0:01:21]}  b5 {[%clk 0:00:59]} 27. Bc6 {[%clk 0:01:14]}  Re8 {[%clk 0:00:44]} 28. axb5 {[%clk 0:01:07]}  axb5 {[%clk 0:00:43]} 29. Bxd7 {[%clk 0:01:07]}  Rxe7 {[%clk 0:00:43]} 30. Bxb5 {[%clk 0:01:07]}  Ne4 {[%clk 0:00:40]} 31. Kg1 {[%clk 0:01:05]}  g5 {[%clk 0:00:38]} 32. Nc3 {[%clk 0:01:05]}  Nf6 {[%clk 0:00:33]} 33. Rd8+ {[%clk 0:01:05]}  Kh7 {[%clk 0:00:32]} 34. Bd3+ {[%clk 0:01:04]}  g6 {[%clk 0:00:32]} 35. Nd5 {[%clk 0:01:04]}  Nxd5 {[%clk 0:00:30]} 36. Rxd5 {[%clk 0:01:05]}  Re1+ {[%clk 0:00:27]} 37. Kh2 {[%clk 0:01:05]}  Rc1 {[%clk 0:00:26]} 38. b3 {[%clk 0:01:04]}  Kg7 {[%clk 0:00:25]} 39. Bc4 {[%clk 0:01:04]}  Rc2 {[%clk 0:00:22]} 40. Rxc5 {[%clk 0:01:04]}  Rxf2 {[%clk 0:00:21]} 41. Rc7 {[%clk 0:01:04]}  Rf6 {[%clk 0:00:17]} 42. Rxf7+ {[%clk 0:01:03]}  Rxf7 {[%clk 0:00:14]} 43. Bxf7 {[%clk 0:01:04]}  Kxf7 {[%clk 0:00:14]} 44. Kg3 {[%clk 0:01:05]}  Kf6 {[%clk 0:00:09]} 45. Kg4 {[%clk 0:01:06]} 1-0


[Site "https://www.chess.com"]

[Event "Titled Tuesday Blitz June 13 Late 2023"]
[White "rionelG"]
[Black "Omranalhosani21"]
[WhiteElo "2220"]
[BlackElo "2575"]
[Result "0-1"]
[Round "1"]
[TimeControl "180+2"]
[Date "2023.06.13"]
[WhiteClock "0:00:00"]
[BlackClock "0:00:24"]
[Board "169"]

1. e4 {[%clk 0:02:35]}  c5 {[%clk 0:02:57]} 2. g3 {[%clk 0:02:34]}  h5 {[%clk 0:02:54]} 3. h3 {[%clk 0:02:34]}  h4 {[%clk 0:02:53]} 4. g4 {[%clk 0:02:34]}  e5 {[%clk 0:02:53]} 5. Bg2 {[%clk 0:02:32]}  Nc6 {[%clk 0:02:50]} 6. Ne2 {[%clk 0:02:33]}  Nge7 {[%clk 0:02:44]} 7. c3 {[%clk 0:02:33]}  d6 {[%clk 0:02:43]} 8. d4 {[%clk 0:02:33]}  Ng6 {[%clk 0:02:42]} 9. Be3 {[%clk 0:02:31]}  cxd4 {[%clk 0:02:40]} 10. cxd4 {[%clk 0:02:30]}  Be7 {[%clk 0:02:41]} 11. Qd2 {[%clk 0:02:28]}  O-O {[%clk 0:02:33]} 12. Nbc3 {[%clk 0:02:28]}  Bd7 {[%clk 0:02:29]} 13. O-O {[%clk 0:02:27]}  Rc8 {[%clk 0:02:26]} 14. Nd5 {[%clk 0:02:11]}  Be6 {[%clk 0:02:13]} 15. Rad1 {[%clk 0:01:31]}  Bxd5 {[%clk 0:02:04]} 16. exd5 {[%clk 0:01:32]}  Nxd4 {[%clk 0:02:05]} 17. Nxd4 {[%clk 0:01:30]}  exd4 {[%clk 0:02:06]} 18. Bxd4 {[%clk 0:01:28]}  Bf6 {[%clk 0:02:05]} 19. f4 {[%clk 0:01:24]}  Bxd4+ {[%clk 0:01:57]} 20. Qxd4 {[%clk 0:01:24]}  Rc2 {[%clk 0:01:57]} 21. Rf2 {[%clk 0:01:18]}  Qc7 {[%clk 0:01:49]} 22. Qxa7 {[%clk 0:01:15]}  Re8 {[%clk 0:01:42]} 23. f5 {[%clk 0:00:58]}  Ne5 {[%clk 0:01:41]} 24. f6 {[%clk 0:00:53]}  gxf6 {[%clk 0:01:30]} 25. Qd4 {[%clk 0:00:49]}  Rxf2 {[%clk 0:01:15]} 26. Qxf2 {[%clk 0:00:48]}  Kg7 {[%clk 0:00:46]} 27. Rf1 {[%clk 0:00:42]}  Qe7 {[%clk 0:00:45]} 28. Qxh4 {[%clk 0:00:41]}  Ng6 {[%clk 0:00:45]} 29. Qf2 {[%clk 0:00:40]}  Qe5 {[%clk 0:00:41]} 30. b3 {[%clk 0:00:36]}  b5 {[%clk 0:00:39]} 31. h4 {[%clk 0:00:25]}  Qe3 {[%clk 0:00:37]} 32. h5 {[%clk 0:00:15]}  Qxf2+ {[%clk 0:00:34]} 33. Rxf2 {[%clk 0:00:15]}  Ne5 {[%clk 0:00:33]} 34. Rf4 {[%clk 0:00:14]}  Ra8 {[%clk 0:00:33]} 35. a4 {[%clk 0:00:14]}  bxa4 {[%clk 0:00:32]} 36. Rxa4 {[%clk 0:00:11]}  Rb8 {[%clk 0:00:32]} 37. b4 {[%clk 0:00:04]}  Nxg4 {[%clk 0:00:31]} 38. Bf1 {[%clk 0:00:04]}  f5 {[%clk 0:00:31]} 39. b5 {[%clk 0:00:03]}  Ne3 {[%clk 0:00:30]} 40. Be2 {[%clk 0:00:03]}  Nxd5 {[%clk 0:00:30]} 41. Rd4 {[%clk 0:00:03]}  Nc3 {[%clk 0:00:30]} 42. Bd3 {[%clk 0:00:03]}  d5 {[%clk 0:00:26]} 43. Bxf5 {[%clk 0:00:02]}  Rxb5 {[%clk 0:00:26]} 44. Rd3 {[%clk 0:00:00]}  d4 {[%clk 0:00:24]} 0-1


[Site "https://www.chess.com"]

[Event "Titled Tuesday Blitz June 13 Late 2023"]
[White "Fantinel, Thibault"]
[Black "Ferriz Barrios, Andres"]
[WhiteFideId "663395"]
[BlackFideId "5104467"]
[WhiteElo "2316"]
[BlackElo "2219"]
[Result "1-0"]
[Round "1"]
[TimeControl "180+2"]
[Date "2023.06.13"]
[WhiteClock "0:00:49"]
[BlackClock "0:01:22"]
[Board "170"]

1. c4 {[%clk 0:02:58]}  e6 {[%clk 0:02:59]} 2. g3 {[%clk 0:02:56]}  f5 {[%clk 0:03:00]} 3. Bg2 {[%clk 0:02:56]}  Nf6 {[%clk 0:03:00]} 4. Nc3 {[%clk 0:02:55]}  c6 {[%clk 0:03:00]} 5. d3 {[%clk 0:02:53]}  d5 {[%clk 0:03:00]} 6. e4 {[%clk 0:02:54]}  dxe4 {[%clk 0:02:59]} 7. dxe4 {[%clk 0:02:55]}  Qxd1+ {[%clk 0:02:58]} 8. Kxd1 {[%clk 0:02:56]}  fxe4 {[%clk 0:02:57]} 9. Nxe4 {[%clk 0:02:55]}  Nbd7 {[%clk 0:02:57]} 10. b3 {[%clk 0:02:44]}  Nc5 {[%clk 0:02:54]} 11. Nxc5 {[%clk 0:02:16]}  Bxc5 {[%clk 0:02:54]} 12. Ke2 {[%clk 0:02:16]}  Rf8 {[%clk 0:02:48]} 13. Nf3 {[%clk 0:02:00]}  Ne4 {[%clk 0:02:44]} 14. Be3 {[%clk 0:01:58]}  Bb4 {[%clk 0:02:38]} 15. Ne5 {[%clk 0:01:50]}  Nd6 {[%clk 0:02:08]} 16. Rad1 {[%clk 0:01:45]}  Nf7 {[%clk 0:02:00]} 17. Nxc6 {[%clk 0:01:38]}  bxc6 {[%clk 0:01:44]} 18. Bxc6+ {[%clk 0:01:39]}  Ke7 {[%clk 0:01:44]} 19. Bxa8 {[%clk 0:01:36]}  Bd7 {[%clk 0:01:44]} 20. Be4 {[%clk 0:01:33]}  a5 {[%clk 0:01:44]} 21. f4 {[%clk 0:01:19]}  g6 {[%clk 0:01:41]} 22. Rd3 {[%clk 0:01:18]}  Nd6 {[%clk 0:01:41]} 23. Rhd1 {[%clk 0:01:13]}  Rd8 {[%clk 0:01:40]} 24. Bf3 {[%clk 0:01:07]}  a4 {[%clk 0:01:37]} 25. c5 {[%clk 0:01:04]}  Nb5 {[%clk 0:01:31]} 26. c6 {[%clk 0:00:52]}  Bxc6 {[%clk 0:01:25]} 27. Bxc6 {[%clk 0:00:49]}  Nc3+ {[%clk 0:01:26]} 28. Rxc3 {[%clk 0:00:49]}  Rxd1 {[%clk 0:01:23]} 29. Kxd1 {[%clk 0:00:48]}  Bxc3 {[%clk 0:01:23]} 30. Bxa4 {[%clk 0:00:49]}  Kd6 {[%clk 0:01:22]} 31. Ke2 {[%clk 0:00:49]} 1-0


[Site "https://www.chess.com"]

[Event "Titled Tuesday Blitz June 13 Late 2023"]
[White "Cluke86"]
[Black "Mortazavi, Ali"]
[BlackFideId "401323"]
[WhiteElo "2216"]
[BlackElo "2339"]
[Result "0-1"]
[Round "1"]
[TimeControl "180+2"]
[Date "2023.06.13"]
[WhiteClock "0:00:04"]
[BlackClock "0:00:26"]
[Board "171"]

1. e4 {[%clk 0:02:57]}  c6 {[%clk 0:02:59]} 2. d4 {[%clk 0:02:55]}  d5 {[%clk 0:03:00]} 3. exd5 {[%clk 0:02:55]}  cxd5 {[%clk 0:03:00]} 4. Bd3 {[%clk 0:02:55]}  Nc6 {[%clk 0:03:01]} 5. c3 {[%clk 0:02:53]}  Qc7 {[%clk 0:03:01]} 6. Nf3 {[%clk 0:02:51]}  Bg4 {[%clk 0:02:57]} 7. Nbd2 {[%clk 0:02:49]}  e6 {[%clk 0:02:57]} 8. h3 {[%clk 0:02:46]}  Bh5 {[%clk 0:02:56]} 9. Nf1 {[%clk 0:02:46]}  Bd6 {[%clk 0:02:53]} 10. Be3 {[%clk 0:02:42]}  Nge7 {[%clk 0:02:52]} 11. g4 {[%clk 0:02:41]}  Bg6 {[%clk 0:02:52]} 12. h4 {[%clk 0:02:34]}  h5 {[%clk 0:02:42]} 13. Bxg6 {[%clk 0:02:24]}  Nxg6 {[%clk 0:02:42]} 14. g5 {[%clk 0:02:14]}  Nce7 {[%clk 0:02:28]} 15. Qa4+ {[%clk 0:02:09]}  Qd7 {[%clk 0:02:25]} 16. Qxd7+ {[%clk 0:01:51]}  Kxd7 {[%clk 0:02:25]} 17. Ng3 {[%clk 0:01:51]}  Rac8 {[%clk 0:02:20]} 18. Kd2 {[%clk 0:01:40]}  b5 {[%clk 0:02:18]} 19. a4 {[%clk 0:01:30]}  b4 {[%clk 0:02:18]} 20. a5 {[%clk 0:01:29]}  Rc6 {[%clk 0:02:08]} 21. Ra4 {[%clk 0:01:20]}  bxc3+ {[%clk 0:02:01]} 22. bxc3 {[%clk 0:01:19]}  Rb8 {[%clk 0:02:02]} 23. Rc1 {[%clk 0:01:15]}  Bxg3 {[%clk 0:01:44]} 24. fxg3 {[%clk 0:01:14]}  Nf5 {[%clk 0:01:44]} 25. Bf2 {[%clk 0:01:11]}  Nd6 {[%clk 0:01:44]} 26. Be1 {[%clk 0:00:54]}  Rb2+ {[%clk 0:01:35]} 27. Rc2 {[%clk 0:00:52]}  Ne4+ {[%clk 0:01:34]} 28. Kc1 {[%clk 0:00:51]}  Rxc2+ {[%clk 0:01:25]} 29. Kxc2 {[%clk 0:00:51]}  f6 {[%clk 0:01:19]} 30. Kd3 {[%clk 0:00:41]}  Nd6 {[%clk 0:01:10]} 31. Nd2 {[%clk 0:00:35]}  fxg5 {[%clk 0:01:02]} 32. hxg5 {[%clk 0:00:31]}  Ne7 {[%clk 0:01:01]} 33. c4 {[%clk 0:00:30]}  dxc4+ {[%clk 0:00:56]} 34. Nxc4 {[%clk 0:00:31]}  Nxc4 {[%clk 0:00:55]} 35. Rxc4 {[%clk 0:00:31]}  a6 {[%clk 0:00:54]} 36. Bd2 {[%clk 0:00:17]}  Rxc4 {[%clk 0:00:34]} 37. Kxc4 {[%clk 0:00:17]}  Kc6 {[%clk 0:00:35]} 38. Bf4 {[%clk 0:00:16]}  g6 {[%clk 0:00:35]} 39. Be5 {[%clk 0:00:16]}  Nf5 {[%clk 0:00:34]} 40. Bf4 {[%clk 0:00:15]}  Ne7 {[%clk 0:00:34]} 41. Be5 {[%clk 0:00:15]}  Nd5 {[%clk 0:00:34]} 42. Bb8 {[%clk 0:00:14]}  Ne3+ {[%clk 0:00:32]} 43. Kd3 {[%clk 0:00:13]}  Nf5 {[%clk 0:00:30]} 44. Kc4 {[%clk 0:00:13]}  h4 {[%clk 0:00:27]} 45. gxh4 {[%clk 0:00:12]}  Nxh4 {[%clk 0:00:27]} 46. Bf4 {[%clk 0:00:10]}  Nf3 {[%clk 0:00:27]} 47. Be3 {[%clk 0:00:10]}  Ne1 {[%clk 0:00:25]} 48. Bd2 {[%clk 0:00:08]}  Nf3 {[%clk 0:00:24]} 49. Be3 {[%clk 0:00:09]}  Nh4 {[%clk 0:00:25]} 50. Bd2 {[%clk 0:00:07]}  Nf5 {[%clk 0:00:25]} 51. Bf4 {[%clk 0:00:07]}  Ne7 {[%clk 0:00:26]} 52. Be5 {[%clk 0:00:07]}  Nd5 {[%clk 0:00:26]} 53. Bg3 {[%clk 0:00:07]}  Ne3+ {[%clk 0:00:25]} 54. Kd3 {[%clk 0:00:07]}  Nf1 {[%clk 0:00:25]} 55. Kc4 {[%clk 0:00:04]}  Nxg3 {[%clk 0:00:26]} 0-1


[Site "https://www.chess.com"]

[Event "Titled Tuesday Blitz June 13 Late 2023"]
[White "campochess"]
[Black "TimGrutter03"]
[WhiteElo "2205"]
[BlackElo "2570"]
[Result "1-0"]
[Round "1"]
[TimeControl "180+2"]
[Date "2023.06.13"]
[WhiteClock "0:00:21"]
[BlackClock "0:00:00"]
[Board "173"]

1. d4 {[%clk 0:02:59]}  Nf6 {[%clk 0:02:53]} 2. Bg5 {[%clk 0:02:58]}  d6 {[%clk 0:02:48]} 3. Bxf6 {[%clk 0:02:57]}  exf6 {[%clk 0:02:44]} 4. e4 {[%clk 0:02:57]}  Be7 {[%clk 0:02:44]} 5. Nc3 {[%clk 0:02:54]}  O-O {[%clk 0:02:43]} 6. Bc4 {[%clk 0:02:53]}  c6 {[%clk 0:02:31]} 7. Bb3 {[%clk 0:02:52]}  Be6 {[%clk 0:02:24]} 8. Nge2 {[%clk 0:02:49]}  Bxb3 {[%clk 0:02:20]} 9. axb3 {[%clk 0:02:48]}  Qd7 {[%clk 0:02:19]} 10. Ng3 {[%clk 0:02:47]}  d5 {[%clk 0:02:17]} 11. exd5 {[%clk 0:02:45]}  cxd5 {[%clk 0:02:18]} 12. O-O {[%clk 0:02:45]}  Nc6 {[%clk 0:02:14]} 13. Qh5 {[%clk 0:02:26]}  Rfd8 {[%clk 0:02:00]} 14. Rfd1 {[%clk 0:02:22]}  g6 {[%clk 0:02:00]} 15. Qf3 {[%clk 0:02:19]}  f5 {[%clk 0:01:59]} 16. Nge2 {[%clk 0:02:15]}  Bf6 {[%clk 0:01:57]} 17. Nf4 {[%clk 0:02:12]}  Nxd4 {[%clk 0:01:44]} 18. Qd3 {[%clk 0:02:02]}  Qc6 {[%clk 0:01:38]} 19. Ncxd5 {[%clk 0:01:57]}  Bg5 {[%clk 0:01:26]} 20. c4 {[%clk 0:01:46]}  Ne6 {[%clk 0:01:08]} 21. Nh3 {[%clk 0:01:40]}  Qc5 {[%clk 0:00:19]} 22. Qc3 {[%clk 0:01:32]}  Be7 {[%clk 0:00:10]} 23. Ra5 {[%clk 0:01:29]}  Qd6 {[%clk 0:00:02]} 24. Qc1 {[%clk 0:00:51]}  Rac8 {[%clk 0:00:01]} 25. Nf6+ {[%clk 0:00:47]}  Bxf6 {[%clk 0:00:02]} 26. Rxd6 {[%clk 0:00:47]}  Rxd6 {[%clk 0:00:03]} 27. g3 {[%clk 0:00:42]}  Rcd8 {[%clk 0:00:03]} 28. Kg2 {[%clk 0:00:42]}  Nd4 {[%clk 0:00:03]} 29. Qh6 {[%clk 0:00:33]}  Bg7 {[%clk 0:00:03]} 30. Qh4 {[%clk 0:00:32]}  Nxb3 {[%clk 0:00:02]} 31. Rxa7 {[%clk 0:00:32]}  Nd2 {[%clk 0:00:02]} 32. Rxb7 {[%clk 0:00:27]}  Bf6 {[%clk 0:00:02]} 33. Qf4 {[%clk 0:00:25]}  Rd4 {[%clk 0:00:01]} 34. Qc7 {[%clk 0:00:24]}  R8d7 {[%clk 0:00:01]} 35. Qc8+ {[%clk 0:00:24]}  Rd8 {[%clk 0:00:01]} 36. Qc6 {[%clk 0:00:22]}  Nxc4 {[%clk 0:00:00]} 37. Qxf6 {[%clk 0:00:21]} 1-0


[Site "https://www.chess.com"]

[Event "Titled Tuesday Blitz June 13 Late 2023"]
[White "Bayo Milagro, Alvaro"]
[Black "Bernado Lopez, Roger"]
[WhiteFideId "22275240"]
[BlackFideId "24585009"]
[WhiteElo "2270"]
[BlackElo "2097"]
[Result "1/2-1/2"]
[Round "1"]
[TimeControl "180+2"]
[Date "2023.06.13"]
[WhiteClock "0:00:09"]
[BlackClock "0:00:29"]
[Board "176"]

1. d4 {[%clk 0:03:00]}  d5 {[%clk 0:02:58]} 2. c4 {[%clk 0:03:00]}  e6 {[%clk 0:02:58]} 3. Nf3 {[%clk 0:03:00]}  Nf6 {[%clk 0:02:57]} 4. g3 {[%clk 0:03:01]}  Bb4+ {[%clk 0:02:56]} 5. Bd2 {[%clk 0:03:00]}  Be7 {[%clk 0:02:56]} 6. Bg2 {[%clk 0:03:00]}  O-O {[%clk 0:02:56]} 7. O-O {[%clk 0:03:00]}  c6 {[%clk 0:02:57]} 8. Qc2 {[%clk 0:03:00]}  Nbd7 {[%clk 0:02:57]} 9. Rd1 {[%clk 0:02:59]}  b6 {[%clk 0:02:56]} 10. b3 {[%clk 0:02:57]}  a5 {[%clk 0:02:53]} 11. Bf4 {[%clk 0:02:50]}  Nh5 {[%clk 0:02:47]} 12. Bc1 {[%clk 0:02:50]}  Bb7 {[%clk 0:02:28]} 13. Nc3 {[%clk 0:02:41]}  f5 {[%clk 0:02:26]} 14. e3 {[%clk 0:02:35]}  Nhf6 {[%clk 0:02:25]} 15. Bb2 {[%clk 0:02:35]}  Rc8 {[%clk 0:02:21]} 16. cxd5 {[%clk 0:02:27]}  cxd5 {[%clk 0:02:18]} 17. Qd3 {[%clk 0:02:25]}  Ne4 {[%clk 0:02:16]} 18. Rac1 {[%clk 0:02:24]}  Ndf6 {[%clk 0:02:08]} 19. Ne2 {[%clk 0:02:22]}  Ng4 {[%clk 0:02:05]} 20. Rf1 {[%clk 0:02:18]}  Rxc1 {[%clk 0:02:05]} 21. Bxc1 {[%clk 0:02:19]}  Qc8 {[%clk 0:02:04]} 22. Ne5 {[%clk 0:02:11]}  Nxe5 {[%clk 0:01:53]} 23. dxe5 {[%clk 0:02:10]}  Ba6 {[%clk 0:01:54]} 24. Qd1 {[%clk 0:02:07]}  Nc3 {[%clk 0:01:52]} 25. Nxc3 {[%clk 0:02:04]}  Bxf1 {[%clk 0:01:52]} 26. Nxd5 {[%clk 0:01:59]}  exd5 {[%clk 0:01:42]} 27. Bxd5+ {[%clk 0:01:57]}  Kh8 {[%clk 0:01:42]} 28. Qxf1 {[%clk 0:01:57]}  Rd8 {[%clk 0:01:38]} 29. Bc4 {[%clk 0:01:25]}  Qc5 {[%clk 0:01:33]} 30. Bb2 {[%clk 0:01:21]}  Rd2 {[%clk 0:01:25]} 31. Bc3 {[%clk 0:01:06]}  Rd8 {[%clk 0:01:19]} 32. a4 {[%clk 0:00:57]}  h6 {[%clk 0:01:19]} 33. Qb1 {[%clk 0:00:49]}  g6 {[%clk 0:01:17]} 34. e6+ {[%clk 0:00:42]}  Kh7 {[%clk 0:01:17]} 35. Bd4 {[%clk 0:00:40]}  Rxd4 {[%clk 0:01:08]} 36. exd4 {[%clk 0:00:40]}  Qxd4 {[%clk 0:01:09]} 37. Qe1 {[%clk 0:00:33]}  Kg7 {[%clk 0:01:06]} 38. Qe2 {[%clk 0:00:28]}  Qa1+ {[%clk 0:01:03]} 39. Kg2 {[%clk 0:00:27]}  Qd4 {[%clk 0:01:04]} 40. f3 {[%clk 0:00:11]}  Kh7 {[%clk 0:01:01]} 41. h4 {[%clk 0:00:10]}  h5 {[%clk 0:00:59]} 42. Qd3 {[%clk 0:00:06]}  Qxd3 {[%clk 0:00:55]} 43. Bxd3 {[%clk 0:00:07]}  Kg7 {[%clk 0:00:56]} 44. Bb5 {[%clk 0:00:05]}  Kf6 {[%clk 0:00:55]} 45. Be8 {[%clk 0:00:05]}  Bc5 {[%clk 0:00:49]} 46. Bf7 {[%clk 0:00:04]}  Be7 {[%clk 0:00:47]} 47. Kh3 {[%clk 0:00:04]}  Bc5 {[%clk 0:00:46]} 48. g4 {[%clk 0:00:05]}  fxg4+ {[%clk 0:00:42]} 49. fxg4 {[%clk 0:00:06]}  hxg4+ {[%clk 0:00:42]} 50. Kxg4 {[%clk 0:00:06]}  Bd6 {[%clk 0:00:41]} 51. h5 {[%clk 0:00:05]}  gxh5+ {[%clk 0:00:41]} 52. Kxh5 {[%clk 0:00:06]}  Be7 {[%clk 0:00:38]} 53. Kg4 {[%clk 0:00:06]}  Ke5 {[%clk 0:00:39]} 54. Bg8 {[%clk 0:00:04]}  Kd5 {[%clk 0:00:34]} 55. Kf5 {[%clk 0:00:04]}  Kc5 {[%clk 0:00:33]} 56. Kg6 {[%clk 0:00:05]}  Kd6 {[%clk 0:00:29]} 57. Kf7 {[%clk 0:00:05]}  Bd8 {[%clk 0:00:29]} 58. Ke8 {[%clk 0:00:05]}  Be7 {[%clk 0:00:29]} 59. Kf7 {[%clk 0:00:03]}  Bh4 {[%clk 0:00:29]} 60. Bh7 {[%clk 0:00:04]}  Be7 {[%clk 0:00:28]} 61. Bd3 {[%clk 0:00:04]}  Bh4 {[%clk 0:00:28]} 62. Bc4 {[%clk 0:00:05]}  Be7 {[%clk 0:00:28]} 63. Kg6 {[%clk 0:00:05]}  Bd8 {[%clk 0:00:28]} 64. Kf5 {[%clk 0:00:05]}  Be7 {[%clk 0:00:28]} 65. Ke4 {[%clk 0:00:06]}  Bd8 {[%clk 0:00:27]} 66. Kd3 {[%clk 0:00:04]}  Be7 {[%clk 0:00:27]} 67. Ke3 {[%clk 0:00:04]}  Bg5+ {[%clk 0:00:27]} 68. Ke4 {[%clk 0:00:05]}  Be7 {[%clk 0:00:28]} 69. Kf4 {[%clk 0:00:06]}  Bd8 {[%clk 0:00:28]} 70. Kf5 {[%clk 0:00:06]}  Be7 {[%clk 0:00:29]} 71. Kg6 {[%clk 0:00:07]}  Bd8 {[%clk 0:00:29]} 72. Kf7 {[%clk 0:00:08]}  Bh4 {[%clk 0:00:29]} 73. Ke8 {[%clk 0:00:08]}  Bg5 {[%clk 0:00:28]} 74. Kf7 {[%clk 0:00:09]}  Bh4 {[%clk 0:00:29]} 75. Kg6 {[%clk 0:00:09]}  Bd8 {[%clk 0:00:29]} 1/2-1/2


[Site "https://www.chess.com"]

[Event "Titled Tuesday Blitz June 13 Late 2023"]
[White "Sariego Figueredo, Wilfredo"]
[Black "Korkmaz, Necmettin"]
[WhiteFideId "3500080"]
[BlackFideId "6303285"]
[WhiteElo "2309"]
[BlackElo "2097"]
[Result "0-1"]
[Round "1"]
[TimeControl "180+2"]
[Date "2023.06.13"]
[WhiteClock "0:01:06"]
[BlackClock "0:01:47"]
[Board "177"]

1. d4 {[%clk 0:02:56]}  d5 {[%clk 0:02:55]} 2. Bf4 {[%clk 0:02:55]}  Nf6 {[%clk 0:02:54]} 3. e3 {[%clk 0:02:56]}  c5 {[%clk 0:02:54]} 4. c3 {[%clk 0:02:53]}  Nc6 {[%clk 0:02:55]} 5. Nf3 {[%clk 0:02:50]}  Qb6 {[%clk 0:02:50]} 6. Qb3 {[%clk 0:02:49]}  c4 {[%clk 0:02:50]} 7. Qc2 {[%clk 0:02:46]}  Bg4 {[%clk 0:02:49]} 8. Nbd2 {[%clk 0:02:45]}  e6 {[%clk 0:02:50]} 9. Be2 {[%clk 0:02:43]}  Bf5 {[%clk 0:02:50]} 10. Qc1 {[%clk 0:02:43]}  h6 {[%clk 0:02:50]} 11. b3 {[%clk 0:02:43]}  cxb3 {[%clk 0:02:50]} 12. axb3 {[%clk 0:02:44]}  Rd8 {[%clk 0:02:49]} 13. O-O {[%clk 0:02:42]}  Be7 {[%clk 0:02:49]} 14. h3 {[%clk 0:02:33]}  O-O {[%clk 0:02:48]} 15. Ne5 {[%clk 0:02:32]}  Nxe5 {[%clk 0:02:46]} 16. Bxe5 {[%clk 0:02:33]}  Rc8 {[%clk 0:02:45]} 17. c4 {[%clk 0:02:29]}  a6 {[%clk 0:02:38]} 18. Nf3 {[%clk 0:02:14]}  dxc4 {[%clk 0:02:34]} 19. bxc4 {[%clk 0:02:15]}  Rfd8 {[%clk 0:02:28]} 20. Qd2 {[%clk 0:02:04]}  Ne4 {[%clk 0:02:27]} 21. Qa5 {[%clk 0:01:58]}  Qxa5 {[%clk 0:02:23]} 22. Rxa5 {[%clk 0:01:59]}  Nc3 {[%clk 0:02:24]} 23. Bd1 {[%clk 0:01:57]}  Nxd1 {[%clk 0:02:15]} 24. Rxd1 {[%clk 0:01:58]}  Rxc4 {[%clk 0:02:15]} 25. Nd2 {[%clk 0:01:47]}  Rc2 {[%clk 0:02:10]} 26. e4 {[%clk 0:01:43]}  Bg6 {[%clk 0:02:09]} 27. f3 {[%clk 0:01:32]}  Bb4 {[%clk 0:02:09]} 28. Nb3 {[%clk 0:01:26]}  Rb2 {[%clk 0:02:00]} 29. Nd2 {[%clk 0:01:19]}  Bxa5 {[%clk 0:01:54]} 30. Nc4 {[%clk 0:01:19]}  Ra2 {[%clk 0:01:54]} 31. Nxa5 {[%clk 0:01:18]}  Rxa5 {[%clk 0:01:54]} 32. Bc7 {[%clk 0:01:18]}  Rad5 {[%clk 0:01:52]} 33. exd5 {[%clk 0:01:18]}  Rxd5 {[%clk 0:01:53]} 34. Bb6 {[%clk 0:01:17]}  e5 {[%clk 0:01:51]} 35. Re1 {[%clk 0:01:15]}  exd4 {[%clk 0:01:50]} 36. Re8+ {[%clk 0:01:13]}  Kh7 {[%clk 0:01:50]} 37. Re7 {[%clk 0:01:12]}  d3 {[%clk 0:01:49]} 38. Rxb7 {[%clk 0:01:09]}  d2 {[%clk 0:01:49]} 39. Kh2 {[%clk 0:01:09]}  d1=Q {[%clk 0:01:49]} 40. Bf2 {[%clk 0:01:09]}  Qe2 {[%clk 0:01:47]} 41. Bg3 {[%clk 0:01:06]}  Rd2 {[%clk 0:01:47]} 0-1


[Site "https://www.chess.com"]